bitfinex/quotes_BTCUSD_20240617
["timestamp","ask_amount","ask_price","bid_price","bid_amount"]
[1718631434598,0.152819,65437.0,65435.0,0.00055119]
[1718631435100,0.305633,65438.0,65435.0,0.00055119]
[1718631435101,0.458463,65436.0,65435.0,0.00055119]
[1718631435521,0.152817,65438.0,65435.0,0.00055119]
[1718631435727,0.152819,65437.0,65435.0,0.00055119]
[1718631435977,0.024,65445.0,65435.0,0.01455119]
[1718631436198,0.152821,65436.0,65435.0,0.01455119]
[1718631436639,0.764105,65436.0,65435.0,0.01455119]
[1718631436849,0.764105,65436.0,65435.0,0.02455119]
[1718631437260,0.764105,65436.0,65435.0,0.01455119]
[1718631437476,1.069747,65436.0,65435.0,0.00055119]
[1718631437693,1.069747,65436.0,65435.0,0.00355119]
[1718631437945,1.069747,65436.0,65435.0,0.01755119]
[1718631438197,1.385389,65436.0,65435.0,0.00355119]
[1718631438407,1.82890408,65436.0,65435.0,0.00355119]
[1718631438619,1.82890408,65436.0,65435.0,0.01055119]
[1718631438825,1.88168282,65436.0,65435.0,0.01055119]
[1718631439029,1.83621144,65436.0,65435.0,0.01055119]
[1718631439237,1.83621144,65436.0,65435.0,0.00355119]
[1718631439455,1.87168282,65436.0,65435.0,0.00355119]
[1718631439859,1.88168282,65436.0,65435.0,0.00355119]
[1718631440088,2.15185344,65436.0,65435.0,0.00355119]
[1718631440312,2.15185344,65436.0,65435.0,0.00055119]
[1718631440539,2.24278503,65436.0,65435.0,0.00055119]
[1718631440719,2.24277073,65436.0,65435.0,0.00055119]
[1718631440948,2.24276981,65436.0,65435.0,0.00055119]
[1718631441233,2.22003538,65436.0,65435.0,0.00955119]
[1718631441457,2.14185344,65436.0,65435.0,0.00355119]
[1718631441661,2.15185344,65436.0,65435.0,0.00355119]
[1718631441863,2.15352623,65436.0,65435.0,0.00355119]
[1718631442085,2.15352623,65436.0,65435.0,0.00055119]
[1718631442551,0.916956,65434.0,65431.0,0.00085]
[1718631442758,0.45849,65432.0,65431.0,0.00085]
[1718631442967,0.77574708,65432.0,65431.0,0.00085]
[1718631443176,1.38706708,65432.0,65431.0,0.00085]
[1718631443387,1.39433291,65432.0,65431.0,0.00085]
[1718631443611,1.69999291,65432.0,65431.0,0.00085]
[1718631443831,1.70999291,65432.0,65431.0,0.00085]
[1718631444296,1.39433291,65432.0,65431.0,0.00085]
[1718631444499,1.40433291,65432.0,65431.0,0.00085]
[1718631444708,1.39633291,65432.0,65431.0,0.00285]
[1718631444923,0.32652291,65432.0,65431.0,0.00085]
[1718631445127,0.78501291,65432.0,65431.0,0.00085]
[1718631445337,1.09067291,65432.0,65431.0,0.00285]
[1718631445763,1.39633291,65432.0,65431.0,0.00285]
[1718631446027,1.40633291,65432.0,65431.0,0.00285]
[1718631446233,1.39633291,65432.0,65431.0,0.00285]
[1718631447504,0.47935291,65432.0,65431.0,0.00285]
[1718631447917,1.09067291,65432.0,65431.0,0.00285]
[1718631448142,1.39633291,65432.0,65431.0,0.00285]
[1718631449378,1.09067291,65432.0,65431.0,0.00285]
[1718631450015,1.39633291,65432.0,65431.0,0.00285]
[1718631451449,0.47935291,65432.0,65431.0,0.00285]
[1718631451652,0.78501291,65432.0,65431.0,0.00285]
[1718631451866,0.32652291,65432.0,65431.0,0.00285]
[1718631452088,0.00926583,65432.0,65431.0,0.767012]
[1718631452306,0.002,65432.0,65431.0,1.092677]
[1718631452720,0.002,65432.0,65431.0,1.67633985]
[1718631453125,0.002,65432.0,65431.0,1.98200485]
[1718631453349,0.002,65432.0,65431.0,1.35067485]
[1718631453560,0.4656,65442.0,65437.0,0.152818]
[1718631453766,0.4656,65442.0,65441.0,0.152809]
[1718631453980,0.4656,65442.0,65439.0,0.458436]
[1718631454179,0.4656,65442.0,65439.0,0.152812]
[1718631454464,0.4656,65442.0,65431.0,0.46465]
[1718631454652,0.4656,65442.0,65431.0,0.45765]
[1718631454861,0.45849,65432.0,65431.0,0.01185]
[1718631455068,0.76415,65432.0,65431.0,0.00085]
[1718631455273,1.06981,65432.0,65431.0,0.00085]
[1718631455691,1.3870965,65432.0,65431.0,0.00085]
[1718631456137,0.7757765,65432.0,65431.0,0.01485]
[1718631456350,0.74992777,65442.0,65431.0,0.01485]
[1718631456553,0.62287115,65441.0,65431.0,0.01485]
[1718631456759,0.15283,65432.0,65431.0,0.01485]
[1718631456989,0.7045,65442.0,65431.0,0.01485]
[1718631456990,0.305647,65435.0,65431.0,0.01485]
[1718631457200,0.305637,65437.0,65431.0,0.01485]
[1718631457390,0.15283,65432.0,65431.0,0.01485]
[1718631457601,0.45849,65432.0,65431.0,0.01485]
[1718631457837,0.45949,65432.0,65431.0,0.01485]
[1718631458261,0.45849,65432.0,65431.0,0.00085]
[1718631458445,0.76415,65432.0,65431.0,0.00085]
[1718631458664,0.45849,65432.0,65431.0,0.00485]
[1718631458868,0.15283,65432.0,65431.0,0.01285]
[1718631459074,0.15283,65432.0,65431.0,0.00085]
[1718631459494,0.58146278,65446.0,65431.0,0.00885]
[1718631459706,0.15283,65432.0,65431.0,0.00885]
[1718631459879,0.45849,65432.0,65431.0,0.00885]
[1718631460089,0.4581409,65432.0,65431.0,0.00885]
[1718631460304,0.305652,65434.0,65431.0,0.00885]
[1718631460478,0.15283,65432.0,65431.0,0.00885]
[1718631460671,0.305651,65435.0,65431.0,0.00885]
[1718631460882,0.45849,65432.0,65431.0,0.00885]
[1718631461141,0.45849,65432.0,65431.0,0.00685]
[1718631461458,0.76415,65432.0,65431.0,0.00285]
[1718631461859,0.76415,65432.0,65431.0,0.00885]
[1718631462062,0.76415,65432.0,65431.0,0.00685]
[1718631462304,0.76415,65432.0,65431.0,0.00085]
[1718631462502,2.45160385,65432.0,65431.0,0.00585]
[1718631462819,0.458665,65407.0,65406.0,0.01835887]
[1718631463031,0.4332,65416.0,65399.0,0.2069]
[1718631463233,0.305788,65405.0,65399.0,0.2069]
[1718631463435,0.4332,65416.0,65399.0,0.2069]
[1718631463436,0.305762,65411.0,65399.0,0.2069]
[1718631463635,0.62315657,65410.0,65399.0,0.359806]
[1718631463932,0.31739257,65409.0,65399.0,0.2069]
[1718631464114,0.152892,65406.0,65399.0,0.2069]
[1718631464333,0.152889,65407.0,65399.0,0.2069]
[1718631464501,0.305764,65410.0,65399.0,0.2069]
[1718631464728,0.4332,65416.0,65399.0,0.2069]
[1718631464997,0.31736651,65415.0,65399.0,0.2069]
[1718631465206,0.305762,65411.0,65399.0,0.2069]
[1718631465417,0.152903,65401.0,65399.0,0.2069]
[1718631465589,0.1961,65405.0,65394.0,0.00085001]
[1718631465728,0.458749,65395.0,65394.0,0.00085001]
[1718631465930,0.764582,65395.0,65394.0,0.00085001]
[1718631466770,0.458738,65397.0,65394.0,0.01485001]
[1718631466964,0.305813,65400.0,65394.0,0.21485001]
[1718631467174,0.152909,65398.0,65394.0,0.01485001]
[1718631467379,0.305816,65399.0,65394.0,0.01485001]
[1718631467649,0.152912,65397.0,65394.0,0.01485001]
[1718631467820,0.152916,65396.0,65394.0,0.01485001]
[1718631468081,0.305816,65399.0,65394.0,0.01485001]
[1718631468282,0.305796,65403.0,65394.0,0.02885001]
[1718631468283,0.305822,65398.0,65394.0,0.02885001]
[1718631468590,0.152912,65397.0,65394.0,0.01485001]
[1718631468739,0.152912,65397.0,65394.0,0.00085001]
[1718631468964,0.001,65395.0,65394.0,0.01485001]
[1718631469148,0.001,65395.0,65394.0,0.00685001]
[1718631469609,0.153916,65395.0,65394.0,0.01485001]
[1718631469835,0.152916,65395.0,65394.0,0.00885001]
[1718631470048,0.764582,65395.0,65394.0,0.00085001]
[1718631470254,1.071415,65395.0,65394.0,0.00885001]
[1718631471309,1.377248,65395.0,65394.0,0.01285001]
[1718631471522,2.15152988,65395.0,65394.0,0.01285001]
[1718631471962,1.08306134,65395.0,65394.0,0.00885001]
[1718631472199,1.071415,65395.0,65394.0,0.00885001]
[1718631472419,1.071415,65395.0,65394.0,0.01285001]
[1718631472638,1.377248,65395.0,65394.0,0.01285001]
[1718631472853,2.02056042,65395.0,65394.0,0.01285001]
[1718631473075,1.69472742,65395.0,65394.0,0.01045732]
[1718631473286,1.71472742,65395.0,65394.0,0.01045732]
[1718631473721,1.40889442,65395.0,65394.0,0.01045732]
[1718631474364,1.73867253,65395.0,65394.0,0.01045732]
[1718631475039,2.04450553,65395.0,65394.0,0.01045732]
[1718631475248,1.73867253,65395.0,65394.0,0.01045732]
[1718631477379,2.33167253,65395.0,65394.0,0.01045732]
[1718631477600,2.53750553,65395.0,65394.0,0.01045732]
[1718631478224,2.63750553,65395.0,65394.0,0.01045732]
[1718631478661,2.63750553,65395.0,65394.0,0.00645732]
[1718631478872,2.82150553,65395.0,65394.0,0.00645732]
[1718631479080,2.82150553,65395.0,65391.0,0.52164969]
[1718631479081,2.289658,65392.0,65391.0,0.52164969]
[1718631479290,4.41426071,65392.0,65391.0,0.52164969]
[1718631479498,5.21937611,65392.0,65391.0,0.51513266]
[1718631479740,5.21937611,65392.0,65391.0,0.48522171]
[1718631480390,4.77010771,65392.0,65391.0,0.48522171]
[1718631480800,4.31426071,65392.0,65391.0,0.48522171]
[1718631481012,4.36426071,65392.0,65391.0,0.48522171]
[1718631481227,4.67010771,65392.0,65391.0,0.48522171]
[1718631481475,4.77010771,65392.0,65391.0,0.48522171]
[1718631482335,4.78010771,65392.0,65391.0,0.48622171]
[1718631482576,4.77010771,65392.0,65391.0,0.48522171]
[1718631483224,3.82441371,65392.0,65391.0,0.48522171]
[1718631483440,3.94941371,65392.0,65391.0,0.48722171]
[1718631483861,3.94941371,65392.0,65391.0,0.48622171]
[1718631484101,3.82441371,65392.0,65391.0,0.48522171]
[1718631484748,3.83841371,65392.0,65391.0,0.48522171]
[1718631484954,3.46256671,65392.0,65391.0,0.48522171]
[1718631485170,1.40194342,65392.0,65391.0,0.48522171]
[1718631485373,1.094464,65392.0,65391.0,0.48522171]
[1718631485589,1.118464,65392.0,65391.0,0.48622171]
[1718631486005,1.104464,65392.0,65391.0,0.48622171]
[1718631486460,1.424311,65392.0,65391.0,0.48622171]
[1718631486687,1.716158,65392.0,65391.0,0.48522171]
[1718631486911,2.48953478,65392.0,65391.0,0.48522171]
[1718631487127,2.84178778,65392.0,65391.0,0.48622171]
[1718631487333,2.82778778,65392.0,65391.0,0.48522171]
[1718631487535,2.86378778,65392.0,65391.0,0.48522171]
[1718631488216,2.39694078,65392.0,65391.0,0.48522171]
[1718631488638,2.70278778,65392.0,65391.0,0.48522171]
[1718631488888,2.40694078,65392.0,65391.0,0.48622171]
[1718631489119,2.25694078,65392.0,65391.0,0.48622171]
[1718631489337,2.23394078,65392.0,65391.0,0.48522171]
[1718631489766,2.23894078,65392.0,65391.0,0.48622171]
[1718631489989,1.93309378,65392.0,65391.0,0.48622171]
[1718631490206,1.41599378,65392.0,65391.0,0.48622171]
[1718631490454,1.40199378,65392.0,65391.0,0.48622171]
[1718631490662,1.11014678,65392.0,65391.0,0.48622171]
[1718631490876,1.42599378,65392.0,65391.0,0.48622171]
[1718631491105,1.74184078,65392.0,65391.0,0.48622171]
[1718631491319,2.25714078,65392.0,65391.0,0.48622171]
[1718631491528,2.97983478,65392.0,65391.0,0.48622171]
[1718631491736,2.51298778,65392.0,65391.0,0.48622171]
[1718631492006,2.14314078,65392.0,65391.0,0.48522171]
[1718631492226,2.19294596,65392.0,65391.0,0.48522171]
[1718631492448,2.63579296,65392.0,65391.0,0.48622171]
[1718631492666,1.71364596,65392.0,65391.0,0.48522171]
[1718631492875,2.22844596,65392.0,65391.0,0.48522171]
[1718631493091,2.54829296,65392.0,65391.0,0.48622171]
[1718631493305,2.24244596,65392.0,65391.0,0.48522171]
[1718631493517,2.34244596,65392.0,65391.0,0.48522171]
[1718631493729,2.66229296,65392.0,65391.0,0.48622171]
[1718631494798,2.35644596,65392.0,65391.0,0.48622171]
[1718631495445,2.66229296,65392.0,65391.0,0.001]
[1718631496445,2.84629296,65392.0,65391.0,0.001]
[1718631497495,2.89629296,65392.0,65391.0,0.001]
[1718631497673,3.20213996,65392.0,65391.0,0.001]
[1718631497882,3.22285219,65392.0,65391.0,0.001]
[1718631499065,2.91700519,65392.0,65391.0,0.001]
[1718631499266,2.61115819,65392.0,65391.0,0.001]
[1718631499893,2.32715819,65392.0,65391.0,0.001]
[1718631500278,2.42715819,65392.0,65391.0,0.001]
[1718631501256,2.27715819,65392.0,65391.0,0.001]
[1718631501368,2.42715819,65392.0,65391.0,0.001]
[1718631501981,2.37715819,65392.0,65391.0,0.001]
[1718631502422,2.73300519,65392.0,65391.0,0.001]
[1718631502624,2.91700519,65392.0,65391.0,0.001]
[1718631502826,2.94093428,65392.0,65391.0,0.001]
[1718631503277,2.94093428,65392.0,65391.0,0.00185]
[1718631503695,2.94186929,65392.0,65391.0,0.00185]
[1718631503909,2.78086929,65392.0,65391.0,0.00185]
[1718631504714,2.94186929,65392.0,65391.0,0.00185]
[1718631505410,2.53602229,65392.0,65391.0,0.00185]
[1718631505647,2.35202229,65392.0,65391.0,0.00185]
[1718631505846,2.28131006,65392.0,65391.0,0.00185]
[1718631506042,2.33131006,65392.0,65391.0,0.00185]
[1718631506262,1.45466306,65392.0,65391.0,0.00185]
[1718631506475,0.81903997,65392.0,65391.0,0.00185]
[1718631506981,0.81903997,65392.0,65391.0,0.12883833]
[1718631507198,1.12488697,65392.0,65391.0,0.12698833]
[1718631507413,0.02394511,65395.0,65394.0,0.458757]
[1718631507628,0.02394511,65395.0,65394.0,0.76818833]
[1718631507832,0.02394511,65395.0,65394.0,0.56818833]
[1718631507833,0.17686111,65395.0,65394.0,0.56818833]
[1718631508042,0.48269411,65395.0,65394.0,0.56818833]
[1718631508253,0.78852711,65395.0,65394.0,0.56818833]
[1718631508676,0.78852711,65395.0,65394.0,0.4412]
[1718631509512,1.09436011,65395.0,65394.0,0.4412]
[1718631509719,0.78952711,65395.0,65394.0,0.4412]
[1718631510283,0.79652711,65395.0,65394.0,0.4412]
[1718631510498,1.10236011,65395.0,65394.0,0.43935]
[1718631511260,0.79652711,65395.0,65394.0,0.43935]
[1718631512101,0.18486111,65395.0,65394.0,0.43935]
[1718631512361,0.03194511,65395.0,65394.0,0.43935]
[1718631512566,0.49069411,65395.0,65394.0,0.43935]
[1718631512775,0.79652711,65395.0,65394.0,0.43935]
[1718631513393,0.49069411,65395.0,65394.0,0.43935]
[1718631513607,0.03194511,65395.0,65394.0,0.43935]
[1718631513808,0.64361111,65395.0,65394.0,0.43935]
[1718631514527,1.10236011,65395.0,65394.0,0.43935]
[1718631515126,0.49069411,65395.0,65394.0,0.43935]
[1718631515376,0.03194511,65395.0,65394.0,0.592269]
[1718631515597,0.03194511,65395.0,65394.0,0.745188]
[1718631515817,0.03194511,65395.0,65394.0,0.45935]
[1718631516022,0.03194511,65395.0,65394.0,0.918107]
[1718631516463,0.0318865,65395.0,65394.0,1.223945]
[1718631516962,0.0318865,65395.0,65394.0,1.529783]
[1718631517381,0.0318865,65395.0,65394.0,0.918107]
[1718631517596,0.0308865,65395.0,65394.0,0.918107]
[1718631517809,0.0308865,65395.0,65394.0,1.04506269]
[1718631518014,0.0308865,65395.0,65394.0,1.35090069]
[1718631518452,0.0238865,65395.0,65394.0,1.75673869]
[1718631518675,0.015,65411.0,65407.0,0.02]
[1718631518885,0.152869,65416.0,65407.0,0.02]
[1718631519098,0.4656,65420.0,65416.0,0.152867]
[1718631519570,0.061176,65425.0,65424.0,0.152849]
[1718631519785,0.214022,65425.0,65424.0,0.2477]
[1718631519993,0.458539,65425.0,65424.0,0.2477]
[1718631520199,0.764232,65425.0,65424.0,0.2477]
[1718631520645,0.458581,65419.0,65418.0,0.4554]
[1718631520882,0.764302,65419.0,65418.0,0.4554]
[1718631521318,0.764302,65419.0,65411.0,0.253]
[1718631521319,0.152877,65412.0,65411.0,0.253]
[1718631521734,0.2541,65426.0,65411.0,0.253]
[1718631522212,0.4856,65427.0,65411.0,0.253]
[1718631522213,0.001,65420.0,65416.0,0.013]
[1718631522418,0.458595,65417.0,65416.0,0.013]
[1718631522629,0.02,65422.0,65411.0,0.253]
[1718631522840,0.152876,65413.0,65411.0,0.253]
[1718631523051,0.001,65412.0,65411.0,0.261]
[1718631523266,0.765385,65412.0,65411.0,0.261]
[1718631523487,0.458658,65408.0,65407.0,0.2115]
[1718631523703,0.76443,65408.0,65407.0,0.2115]
[1718631523915,0.152886,65408.0,65407.0,0.2115]
[1718631524131,0.305741,65415.0,65407.0,0.2115]
[1718631524341,0.152868,65416.0,65411.0,0.013]
[1718631525559,0.4656,65420.0,65411.0,0.013]
[1718631526045,0.4656,65420.0,65409.0,0.152882]
[1718631526702,0.4656,65420.0,65410.0,0.152881]
[1718631527252,0.4656,65420.0,65411.0,0.013]
[1718631527483,0.4656,65420.0,65411.0,0.152877]
[1718631527710,0.4656,65420.0,65409.0,0.2711]
[1718631527711,0.4656,65420.0,65417.0,0.152863]
[1718631528122,0.4666,65420.0,65417.0,0.152863]
[1718631528358,0.4666,65420.0,65412.0,0.1998]
[1718631528589,0.4656,65420.0,65415.0,0.152869]
[1718631528805,0.4656,65428.0,65416.0,0.2647]
[1718631529009,0.305692,65426.0,65416.0,0.2647]
[1718631529219,0.305703,65423.0,65416.0,0.2647]
[1718631529440,0.09617,65432.0,65416.0,0.2647]
[1718631529441,0.02,65428.0,65416.0,0.2647]
[1718631529652,0.305689,65426.0,65416.0,0.2647]
[1718631529909,0.152862,65419.0,65416.0,0.2647]
[1718631530118,0.02,65428.0,65416.0,0.2647]
[1718631530535,0.07617,65432.0,65416.0,0.2717]
[1718631530536,0.401831,65432.0,65416.0,0.2717]
[1718631530745,0.152865,65417.0,65416.0,0.2717]
[1718631530956,0.458623,65413.0,65412.0,0.1998]
[1718631531410,0.764372,65413.0,65412.0,0.1998]
[1718631531613,0.458623,65413.0,65412.0,0.1998]
[1718631532042,0.152874,65413.0,65412.0,0.1998]
[1718631532253,0.458619,65414.0,65412.0,0.1998]
[1718631532512,0.458623,65413.0,65412.0,0.1998]
[1718631533131,0.152874,65414.0,65412.0,0.1998]
[1718631533343,0.4656,65425.0,65412.0,0.1998]
[1718631533815,0.152865,65417.0,65416.0,0.002]
[1718631534219,0.152874,65414.0,65412.0,0.2118]
[1718631534433,0.15287,65415.0,65412.0,0.2118]
[1718631534637,0.001,65414.0,65412.0,0.2068]
[1718631535077,0.152872,65414.0,65412.0,0.1998]
[1718631535289,0.152867,65417.0,65412.0,0.1998]
[1718631535496,0.09617,65432.0,65412.0,0.1998]
[1718631535707,0.02,65428.0,65412.0,0.1998]
[1718631535917,0.305712,65421.0,65412.0,0.1998]
[1718631536125,0.305712,65421.0,65416.0,0.002]
[1718631536126,0.152858,65420.0,65416.0,0.002]
[1718631536352,0.152863,65418.0,65416.0,0.002]
[1718631536977,0.305677,65429.0,65416.0,0.002]
[1718631537409,0.152849,65424.0,65416.0,0.009]
[1718631537679,0.4656,65425.0,65416.0,0.007]
[1718631537883,0.00093501,65417.0,65412.0,0.359676]
[1718631538301,0.00093501,65417.0,65412.0,0.2068]
[1718631538511,0.00093501,65417.0,65415.0,0.02]
[1718631538786,0.00093501,65417.0,65416.0,0.00284747]
[1718631539055,0.00093501,65417.0,65416.0,0.46144947]
[1718631539282,0.00093501,65417.0,65416.0,0.731902]
[1718631539520,0.00093501,65417.0,65416.0,0.53108556]
[1718631539752,0.00093501,65417.0,65416.0,0.2583]
[1718631539988,0.00093501,65417.0,65416.0,0.2513]
[1718631540728,0.00093501,65417.0,65416.0,1.229737]
[1718631540965,0.00093501,65417.0,65416.0,0.59231763]
[1718631541226,0.46053001,65417.0,65416.0,0.13391763]
[1718631541508,0.46053001,65417.0,65416.0,0.007]
[1718631541708,0.00193501,65417.0,65416.0,0.007]
[1718631541943,0.00093501,65417.0,65416.0,0.007]
[1718631542202,0.00093501,65417.0,65416.0,0.009]
[1718631542695,0.15380001,65417.0,65416.0,0.009]
[1718631542950,1.23316001,65417.0,65416.0,0.009]
[1718631543250,1.86462001,65417.0,65416.0,0.009]
[1718631543494,1.96462001,65417.0,65416.0,0.009]
[1718631544224,1.96462001,65417.0,65416.0,0.002]
[1718631544479,0.764572,65396.0,65395.0,0.00085]
[1718631544979,0.458743,65396.0,65395.0,0.00085]
[1718631545215,0.152909,65399.0,65395.0,0.00085]
[1718631545487,0.2489,65404.0,65395.0,0.00085]
[1718631545727,0.152914,65396.0,65395.0,0.00285]
[1718631546313,0.152914,65396.0,65395.0,0.00085]
[1718631546314,0.458743,65396.0,65395.0,0.00085]
[1718631546547,0.152914,65396.0,65395.0,0.00085]
[1718631546997,0.764572,65396.0,65395.0,0.00085]
[1718631547434,0.764572,65396.0,65395.0,0.00585]
[1718631547912,0.2489,65404.0,65395.0,0.00585]
[1718631548348,0.152904,65401.0,65395.0,0.00885]
[1718631548554,0.3058,65403.0,65395.0,0.00885]
[1718631548555,0.152911,65398.0,65395.0,0.00885]
[1718631548770,0.45872,65400.0,65395.0,0.00885]
[1718631548971,0.152909,65399.0,65395.0,0.00385]
[1718631549401,0.152901,65402.0,65395.0,0.00385]
[1718631549618,0.152891,65406.0,65395.0,0.00385]
[1718631549837,0.4656,65408.0,65404.0,0.152894]
[1718631550045,0.4656,65408.0,65404.0,0.02]
[1718631550247,0.4656,65408.0,65403.0,0.02]
[1718631550429,0.152888,65407.0,65397.0,0.02]
[1718631550629,0.152888,65407.0,65396.0,0.4791]
[1718631550630,0.4656,65408.0,65401.0,0.02]
[1718631550847,0.46653501,65417.0,65409.0,0.152882]
[1718631551067,0.00093501,65417.0,65410.0,0.252]
[1718631551302,0.152873,65414.0,65410.0,0.252]
[1718631551545,0.00093501,65417.0,65410.0,0.252]
[1718631551808,0.305735,65416.0,65410.0,0.252]
[1718631552051,0.15287,65415.0,65410.0,0.252]
[1718631552300,0.00093501,65417.0,65410.0,0.272]
[1718631552525,0.00993501,65417.0,65410.0,0.273]
[1718631553160,0.00993501,65417.0,65410.0,0.253]
[1718631553161,0.152873,65414.0,65410.0,0.252]
[1718631553817,0.00093501,65417.0,65410.0,0.252]
[1718631554033,0.00093501,65417.0,65411.0,0.02]
[1718631554262,0.00393501,65417.0,65411.0,0.02]
[1718631554478,0.00093501,65417.0,65411.0,0.02]
[1718631554678,0.001,65415.0,65410.0,0.410881]
[1718631554914,0.001,65415.0,65411.0,0.02]
[1718631555148,0.00093501,65417.0,65413.0,0.02]
[1718631555635,0.00193501,65417.0,65411.0,0.031]
[1718631555883,0.00193501,65417.0,65411.0,0.045]
[1718631556118,0.00093501,65417.0,65413.0,0.02]
[1718631556600,0.00193501,65417.0,65413.0,0.028]
[1718631556975,0.00193501,65417.0,65414.0,0.02]
[1718631557716,0.00193501,65417.0,65415.0,0.02]
[1718631558193,0.00093501,65417.0,65415.0,0.02]
[1718631558418,0.00193501,65417.0,65415.0,0.02]
[1718631559095,0.00093501,65417.0,65415.0,0.02]
[1718631559324,0.00093501,65417.0,65415.0,0.026]
[1718631559325,0.00193501,65417.0,65415.0,0.026]
[1718631559582,0.247,65415.0,65413.0,0.152873]
[1718631559828,0.247,65415.0,65414.0,0.76436]
[1718631560056,0.247,65415.0,65414.0,0.89127459]
[1718631560307,0.247,65415.0,65414.0,0.58553059]
[1718631560522,0.247,65415.0,65414.0,0.12691459]
[1718631560753,0.247,65415.0,65410.0,0.252]
[1718631560994,0.247,65415.0,65414.0,0.458616]
[1718631561254,0.247,65415.0,65414.0,1.19702266]
[1718631561488,0.247,65415.0,65414.0,1.20902266]
[1718631561730,0.248,65415.0,65414.0,2.36916666]
[1718631561958,0.248,65415.0,65414.0,2.35716666]
[1718631562425,0.248,65415.0,65414.0,2.75477066]
[1718631562661,0.248,65415.0,65414.0,3.01345994]
[1718631563848,0.00093501,65417.0,65416.0,1.840332]
[1718631564089,0.00093501,65417.0,65416.0,2.31434819]
[1718631564312,0.00093501,65417.0,65416.0,2.81039937]
[1718631564731,0.4656,65432.0,65431.0,1.491427]
[1718631564932,0.00093501,65447.0,65431.0,0.4216]
[1718631565069,0.00093501,65447.0,65438.0,0.305631]
[1718631565264,0.00093501,65447.0,65436.0,0.30564]
[1718631565469,0.00093501,65447.0,65437.0,0.305634]
[1718631566089,0.00093501,65447.0,65438.0,0.152816]
[1718631566494,0.00093501,65447.0,65437.0,0.305634]
[1718631566696,0.00093501,65447.0,65438.0,0.152815]
[1718631566901,0.00093501,65447.0,65439.0,0.305625]
[1718631567133,0.00093501,65447.0,65440.0,0.00304917]
[1718631567371,0.00093501,65447.0,65445.0,0.1528]
[1718631567542,0.00093501,65447.0,65445.0,0.4584]
[1718631568094,0.00093501,65447.0,65445.0,0.1528]
[1718631568320,0.00093501,65447.0,65445.0,0.6773]
[1718631568921,0.00093501,65447.0,65445.0,1.2885]
[1718631569331,0.00093501,65447.0,65445.0,1.3115]
[1718631571442,0.00093501,65447.0,65445.0,0.7003]
[1718631571663,0.00093501,65447.0,65445.0,1.0059]
[1718631571989,0.00093501,65447.0,65445.0,1.3115]
[1718631572981,0.00093501,65447.0,65445.0,1.4115]
[1718631573232,0.00093501,65447.0,65445.0,1.3115]
[1718631574019,0.00093501,65447.0,65445.0,1.6671]
[1718631574225,0.00093501,65447.0,65445.0,1.7811]
[1718631574661,0.00093501,65447.0,65445.0,1.7951]
[1718631575076,0.00093501,65447.0,65445.0,1.7811]
[1718631575279,0.00093501,65447.0,65445.0,1.7951]
[1718631575712,0.00093501,65447.0,65445.0,1.7811]
[1718631575938,0.00093501,65447.0,65445.0,2.48166]
[1718631576156,0.00093501,65447.0,65445.0,2.31689183]
[1718631576359,0.00093501,65447.0,65445.0,2.62249183]
[1718631576562,0.00093501,65447.0,65445.0,2.60849183]
[1718631576998,0.00093501,65447.0,65445.0,2.80809183]
[1718631577237,0.00093501,65447.0,65445.0,2.79409183]
[1718631577939,0.00093501,65447.0,65445.0,2.48849183]
[1718631578361,0.00093501,65447.0,65445.0,2.38849183]
[1718631578571,0.00093501,65447.0,65445.0,1.9177446]
[1718631578986,0.00093501,65447.0,65445.0,2.0177446]
[1718631579137,0.00093501,65447.0,65445.0,2.0317446]
[1718631579344,0.00093501,65447.0,65445.0,1.9317446]
[1718631579554,0.00093501,65447.0,65445.0,2.3233446]
[1718631579767,0.00093501,65447.0,65445.0,1.9177446]
[1718631579992,0.00093501,65447.0,65445.0,1.8817446]
[1718631580189,0.00093501,65447.0,65445.0,1.7668846]
[1718631580394,0.00093501,65447.0,65445.0,1.8168846]
[1718631580547,0.00093501,65447.0,65445.0,1.8888846]
[1718631580750,0.03100843,65446.0,65445.0,2.3003446]
[1718631581015,0.03100843,65446.0,65445.0,2.3143446]
[1718631581594,0.03100843,65446.0,65445.0,2.3373446]
[1718631581965,0.00093501,65450.0,65449.0,1.725114]
[1718631582168,0.009383,65458.0,65457.0,0.644632]
[1718631582372,0.009383,65458.0,65457.0,2.17089583]
[1718631582570,0.009383,65458.0,65457.0,2.78198383]
[1718631582782,0.009383,65458.0,65457.0,2.9905306]
[1718631582977,0.009383,65478.0,65457.0,2.9905306]
[1718631582978,0.009383,65478.0,65475.0,0.30546]
[1718631583176,0.009383,65478.0,65475.0,0.96365]
[1718631583437,0.009383,65478.0,65475.0,1.26911]
[1718631583713,0.009383,65478.0,65475.0,1.39590176]
[1718631584486,0.009383,65478.0,65475.0,1.09044176]
[1718631584706,0.009383,65478.0,65475.0,1.40689797]
[1718631584868,0.009383,65478.0,65475.0,1.42989797]
[1718631585465,0.009383,65478.0,65475.0,1.41889797]
[1718631585670,0.009383,65478.0,65475.0,1.72435797]
[1718631586069,0.009383,65478.0,65475.0,1.29711]
[1718631586479,0.009383,65478.0,65475.0,1.29211]
[1718631586878,0.009383,65478.0,65475.0,1.30111]
[1718631587147,0.009383,65478.0,65475.0,1.44189618]
[1718631587568,0.009383,65478.0,65475.0,1.42789618]
[1718631587982,0.009383,65478.0,65475.0,1.44189618]
[1718631589894,0.009383,65478.0,65475.0,1.49189618]
[1718631590537,0.009383,65478.0,65475.0,1.51023908]
[1718631590946,0.009383,65478.0,65475.0,1.49189618]
[1718631591359,0.009383,65478.0,65475.0,1.68207391]
[1718631591575,0.009383,65478.0,65475.0,1.87393391]
[1718631591990,0.009383,65478.0,65475.0,2.17939391]
[1718631592197,0.009383,65478.0,65475.0,1.87393391]
[1718631592372,0.009383,65478.0,65475.0,1.77393391]
[1718631594428,0.009383,65478.0,65475.0,1.87393391]
[1718631594893,0.009383,65478.0,65475.0,2.22939391]
[1718631595099,0.009383,65484.0,65480.0,0.700014]